Workbook

Sheet Debt Sizing Analysis
M1: Decline | N1: Decline | O1: Decline
E2: Target | F2: Pct Reduction | G2: Production | H2: vs Base | I2: vs P90 | J2: DSCR Reqd | L2: Example | M2: Rel to P50 | N2: Rel to P90 | O2: Rel to P50
D4: P50 DSCR | E4: 1.4 | F4: =(E4-1)/E4 -> 0.2857142857 | G4: =INDEX('FPL Example'!$B$20:$H$20,'FPL Example'!$N$4) -> 536.6 | J4: =E4 -> 1.4 | L4: =E4*100 -> 140
D5: P90 10-yr DSCR | E5: 1.35 | F5: =(E5-1)/E5 -> 0.2592592593 | G5: =INDEX('FPL Example'!$B$18:$H$18,'FPL Example'!$N$4) -> 452.6 | H5: =1-G5/G4 -> 0.1565411852 | J5: =(E16-1)+E5 -> 1.535594344 | L5: =E5*100 -> 135 | M5: =1-L5/L4 -> 0.03571428571
D6: P99 1-yr DSCR | E6: 1 | F6: 0 | G6: =INDEX('FPL Example'!B7:H7,'FPL Example'!N4) -> 335.7666902 | H6: =1-G6/G4 -> 0.3742700519 | I6: =1-G6/G5 -> 0.2581381128 | J6: =E17 -> 1.598133513 | L6: 100 | M6: =1-L6/L4 -> 0.2857142857 | N6: =1-L6/L5 -> 0.2592592593 | O6: =1-L6/L4 -> 0.2857142857
D8: Pct Reduction = DSCR-1/DSCR
H9: Pct Red = (DSCR-1)/DSCR
D10: Max P90 vs P50 Before P90 Constraint | E10: =M5 -> 0.03571428571 | H10: Pct Red * DSCR = (DSCR-1)
D11: Constraint Applied | E11: =IF(H5>E10,D5,D4) -> P90 10-yr DSCR | H11: Pct Red * DSCR - DSCR = -1
H12: DSCR - Pct Red * DSCR = 1
D13: Max P99 vs P90 Before P99 Constraint | E13: =N6 -> 0.2592592593 | H13: DSCR * (1-Pct Red) = 1
D14: Constraint Applied | E14: =IF(I6>E13,D6,D5) -> P90 10-yr DSCR | H14: DSCR = 1/(1-Pct Red)
D16: Required DSCR Difference - P90 | E16: =1/(1-H5) -> 1.185594344
D17: Required DSCR Difference - P99 | E17: =1/(1-H6) -> 1.598133513
D19: Final Constraint | E19: =INDEX(D4:D6,MATCH(MAX(J4:J6),J4:J6,0)) -> P99 1-yr DSCR

Sheet Simulation
B2: Expected Production | C2: 100
H3: 0.5 | I3: 0.25 | J3: 0.1 | K3: 0.05 | L3: 0.01
C4: Value | D4: Squared | H4: P50 | I4: P75 | J4: P90 | K4: P95 | L4: P99
B5: Std Deviation from Wind Changes | C5: 12 | D5: =C5^2 -> 144 | H5: =NORMINV($H$3,$C$2,C5) -> 100 | I5: =NORMINV(I$3,$C$2,$C5) -> 91.906123 | J5: 84.62138121 | K5: 80.26175648 | L5: 72.08382551
B6: Standard Deviation from Permanent Factors | C6: 10 | D6: =C6^2 -> 100 | F6: P 10-year | H6: =NORMINV($H$3,$C$2,C6) -> 100 | I6: 93.2551025 | J6: 87.18448434 | K6: 83.55146373 | L6: 76.73652126
B7: Total MSE | C7: =D7^0.5 -> 15.62049935 | D7: =SUM(D5:D6) -> 244 | F7: P 1-year | H7: =NORMINV($H$3,$C$2,C7) -> 100 | I7: 89.46413329 | J7: 79.9815246 | K7: 74.30656499 | L7: 63.66128454
B9: Year | C9: 1 | D9: 2 | E9: 3 | F9: 4 | G9: 5 | H9: 6 | I9: 7 | J9: 8 | K9: 9 | L9: 10 | M9: 11 | N9: 12 | O9: 13 | P9: 14 | Q9: 15 | R9: 16 | S9: 17 | T9: 18 | U9: 19 | V9: 20
B10: Base | C10: 100 | D10: 100 | E10: 100 | F10: 100 | G10: 100 | H10: 100 | I10: 100 | J10: 100 | K10: 100 | L10: 100 | M10: 100 | N10: 100 | O10: 100 | P10: 100 | Q10: 100 | R10: 100 | S10: 100 | T10: 100 | U10: 100 | V10: 100
B11: Random Factor | C11: =RAND() -> 0.4939255149 | D11: =RAND() -> 0.5565231455 | E11: 0.2909408884 | F11: 0.8920640267 | G11: 0.5988625555 | H11: 0.2301039864 | I11: 0.2658013755 | J11: 0.03011938057 | K11: 0.893073756 | L11: 0.8673488179 | M11: 0.9106919177 | N11: 0.7760091753 | O11: 0.5079294449 | P11: 0.6985209645 | Q11: 0.4170411535 | R11: 0.8576275671 | S11: 0.2583338386 | T11: 0.1130631571 | U11: 0.4776117332 | V11: 0.3992930138
B12: Std Deviations Away from Mean from Wind | C12: =NORMINV(C11,C10,$C$5) -> 99.81727523 | D12: =NORMINV(D11,D10,$C$5) -> 101.7059187 | E12: 93.39234265 | F12: 114.8509564 | G12: 103.0048487 | H12: 91.13794677 | I12: 92.4932648 | J12: 77.45149622 | K12: 114.9164997 | L12: 113.3673517 | M12: 116.140337 | N12: 109.1054106 | O12: 100.2385298 | P12: 106.2418165 | Q12: 97.48637467 | R12: 112.8366532 | S12: 92.21811259 | T12: 85.47522729 | U12: 99.32621738 | V12: 96.9378703
B13: Random Factor One - Time | C13: =RAND() -> 0.5522805038 | D13: =C13 -> 0.5522805038 | E13: =D13 -> 0.5522805038 | F13: 0.5522805038 | G13: 0.5522805038 | H13: 0.5522805038 | I13: 0.5522805038 | J13: 0.5522805038 | K13: 0.5522805038 | L13: 0.5522805038 | M13: 0.5522805038 | N13: 0.5522805038 | O13: 0.5522805038 | P13: 0.5522805038 | Q13: 0.5522805038 | R13: 0.5522805038 | S13: 0.5522805038 | T13: 0.5522805038 | U13: 0.5522805038 | V13: 0.5522805038
B14: Std Deviations Away from Mean from Permanent Factors | C14: =NORMINV(C13,C10,$C$6) -> 101.3142515 | D14: =NORMINV(D13,D10,$C$6) -> 101.3142515 | E14: 101.3142515 | F14: 101.3142515 | G14: 101.3142515 | H14: 101.3142515 | I14: 101.3142515 | J14: 101.3142515 | K14: 101.3142515 | L14: 101.3142515 | M14: 101.3142515 | N14: 101.3142515 | O14: 101.3142515 | P14: 101.3142515 | Q14: 101.3142515 | R14: 101.3142515 | S14: 101.3142515 | T14: 101.3142515 | U14: 101.3142515 | V14: 101.3142515
B15: Total Deviation | C15: =(C12-C10)+(C14-C10) -> 1.131526749 | D15: =(D12-D10)+(D14-D10) -> 3.020170265 | E15: -5.293405826 | F15: 16.16520788 | G15: 4.319100263 | H15: -7.547801703 | I15: -6.192483677 | J15: -21.23425226 | K15: 16.23075125 | L15: 14.68160323 | M15: 17.45458856 | N15: 10.41966211 | O15: 1.55278128 | P15: 7.556068061 | Q15: -1.199373802 | R15: 14.15090473 | S15: -6.467635889 | T15: -13.21052118 | U15: 0.6404689057 | V15: -1.747878177
B16: Total Wind | C16: =C10+C15 -> 101.1315267 | D16: =D10+D15 -> 103.0201703 | E16: 94.70659417 | F16: 116.1652079 | G16: 104.3191003 | H16: 92.4521983 | I16: 93.80751632 | J16: 78.76574774 | K16: 116.2307513 | L16: 114.6816032 | M16: 117.4545886 | N16: 110.4196621 | O16: 101.5527813 | P16: 107.5560681 | Q16: 98.8006262 | R16: 114.1509047 | S16: 93.53236411 | T16: 86.78947882 | U16: 100.6404689 | V16: 98.25212182
B18: Wind Variation | C18: =C12 -> 99.81727523 | D18: =D12 -> 101.7059187 | E18: 93.39234265 | F18: 114.8509564 | G18: 103.0048487 | H18: 91.13794677 | I18: 92.4932648 | J18: 77.45149622 | K18: 114.9164997 | L18: 113.3673517 | M18: 116.140337 | N18: 109.1054106 | O18: 100.2385298 | P18: 106.2418165 | Q18: 97.48637467 | R18: 112.8366532 | S18: 92.21811259 | T18: 85.47522729 | U18: 99.32621738 | V18: 96.9378703
B19: P95 with Permanent Factors | C19: =NORMINV(5%,C18,$C$6) -> 83.36873896 | D19: =NORMINV(5%,D18,$C$6) -> 85.25738247 | E19: 76.94380638 | F19: 98.40242009 | G19: 86.55631247 | H19: 74.6894105 | I19: 76.04472853 | J19: 61.00295995 | K19: 98.46796346 | L19: 96.91881543 | M19: 99.69180077 | N19: 92.65687432 | O19: 83.78999349 | P19: 89.79328027 | Q19: 81.0378384 | R19: 96.38811693 | S19: 75.76957632 | T19: 69.02669102 | U19: 82.87768111 | V19: 80.48933403
B20: P5 with Permanent Factors | C20: =NORMINV(95%,C18,$C$6) -> 116.2658115 | D20: =NORMINV(95%,D18,$C$6) -> 118.154455 | E20: 109.8408789 | F20: 131.2994926 | G20: 119.453385 | H20: 107.586483 | I20: 108.9418011 | J20: 93.90003249 | K20: 131.365036 | L20: 129.815888 | M20: 132.5888733 | N20: 125.5539469 | O20: 116.687066 | P20: 122.6903528 | Q20: 113.9349109 | R20: 129.2851895 | S20: 108.6666489 | T20: 101.9237636 | U20: 115.7747537 | V20: 113.3864066
B22: P50 | C22: =C10 -> 100 | D22: =D10 -> 100 | E22: 100 | F22: 100 | G22: 100 | H22: 100 | I22: 100 | J22: 100 | K22: 100 | L22: 100 | M22: 100 | N22: 100 | O22: 100 | P22: 100 | Q22: 100 | R22: 100 | S22: 100 | T22: 100 | U22: 100 | V22: 100
B23: Wind Speed Variation | C23: =C12 -> 99.81727523 | D23: =D12 -> 101.7059187 | E23: 93.39234265 | F23: 114.8509564 | G23: 103.0048487 | H23: 91.13794677 | I23: 92.4932648 | J23: 77.45149622 | K23: 114.9164997 | L23: 113.3673517 | M23: 116.140337 | N23: 109.1054106 | O23: 100.2385298 | P23: 106.2418165 | Q23: 97.48637467 | R23: 112.8366532 | S23: 92.21811259 | T23: 85.47522729 | U23: 99.32621738 | V23: 96.9378703
B24: Total Variation | C24: =C16 -> 101.1315267 | D24: =D16 -> 103.0201703 | E24: 94.70659417 | F24: 116.1652079 | G24: 104.3191003 | H24: 92.4521983 | I24: 93.80751632 | J24: 78.76574774 | K24: 116.2307513 | L24: 114.6816032 | M24: 117.4545886 | N24: 110.4196621 | O24: 101.5527813 | P24: 107.5560681 | Q24: 98.8006262 | R24: 114.1509047 | S24: 93.53236411 | T24: 86.78947882 | U24: 100.6404689 | V24: 98.25212182
D26: =C16 -> 101.1315267
C27: 1 | F27: =STDEV(D27:D5026) -> 
C28: 2
C29: 3
C30: 4
C31: 5
C32: 6
C33: 7
C34: 8
C35: 9
C36: 10
C37: 11
C38: 12
C39: 13
C40: 14
C41: 15
C42: 16
C43: 17
C44: 18
C45: 19
C46: 20
C47: 21
C48: 22
C49: 23
C50: 24
C51: 25
C52: 26
C53: 27
C54: 28
C55: 29
C56: 30
C57: 31
C58: 32
C59: 33
C60: 34
C61: 35
C62: 36
C63: 37
C64: 38
C65: 39
C66: 40
C67: 41
C68: 42
C69: 43
C70: 44
C71: 45
C72: 46
C73: 47
C74: 48
C75: 49
C76: 50
C77: 51
C78: 52
C79: 53
C80: 54
C81: 55
C82: 56
C83: 57
C84: 58
C85: 59
C86: 60
C87: 61
C88: 62
C89: 63
C90: 64
C91: 65
C92: 66
C93: 67
C94: 68
C95: 69
C96: 70
C97: 71
C98: 72
C99: 73
C100: 74
C101: 75
C102: 76
C103: 77
C104: 78
C105: 79
C106: 80
C107: 81
C108: 82
C109: 83
C110: 84
C111: 85
C112: 86
C113: 87
C114: 88
C115: 89
C116: 90
C117: 91
C118: 92
C119: 93
C120: 94
C121: 95
C122: 96
C123: 97
C124: 98
C125: 99
C126: 100
C127: 101
C128: 102
C129: 103
C130: 104
C131: 105
C132: 106
C133: 107
C134: 108
C135: 109
C136: 110
C137: 111
C138: 112
C139: 113
C140: 114
C141: 115
C142: 116
C143: 117
C144: 118
C145: 119
C146: 120
C147: 121
C148: 122
C149: 123
C150: 124
C151: 125
C152: 126
C153: 127
C154: 128
C155: 129
C156: 130
C157: 131
C158: 132
C159: 133
C160: 134
C161: 135
C162: 136
C163: 137
C164: 138
C165: 139
C166: 140
C167: 141
C168: 142
C169: 143
C170: 144
C171: 145
C172: 146
C173: 147
C174: 148
C175: 149
C176: 150
C177: 151
C178: 152
C179: 153
C180: 154
C181: 155
C182: 156
C183: 157
C184: 158
C185: 159
C186: 160
C187: 161
C188: 162
C189: 163
C190: 164
C191: 165
C192: 166
C193: 167
C194: 168
C195: 169
C196: 170
C197: 171
C198: 172
C199: 173
C200: 174
C201: 175
C202: 176
C203: 177
C204: 178
C205: 179
... 4821 more rows

Sheet FPL Example
A2: Site | B2: LB II | C2: CGordo | D2: SW Mesa | E2: Hancock | F2: HWinds | G2: New Mex | H2: Montfort | I2: Total project | J2: Portfolio forecast | M2: =TRANSPOSE(B2:H2) -> LB II
A3: Rated power | B3: 103.5 | C3: 41.3 | D3: 74.9 | E3: 97.7 | F3: 145.8 | G3: 204 | H3: 30 | I3: 697 | M3: CGordo
A4: Net energy (GWh/year) | B4: 333 | C4: 104.5 | D4: 231.8 | E4: 288.5 | F4: 476.5 | G4: 536.6 | H4: 57.6 | I4: 2029 | M4: SW Mesa | N4: 6
A5: Net capacity factor (%) | B5: 36.7 | C5: 28.9 | D5: 35.3 | E5: 33.7 | F5: 37.3 | G5: 30 | H5: 21.9 | I5: 33 | M5: Hancock
A6: 1-Year Average | M6: HWinds
A7: P99 | B7: =_xlfn.NORM.INV(1%,B11,B45) -> 243.7564658 | C7: =_xlfn.NORM.INV(1%,C11,C45) -> 72.53638871 | D7: 171.2671432 | E7: 184.8304112 | F7: 321.7734923 | G7: 335.7666902 | H7: 21.81772719 | M7: New Mex
A8: P95 | B8: 269.9 | C8: 81.9 | D8: 189 | E8: 215.2 | F8: 367.1 | G8: 394.6 | H8: 32.3 | I8: 1550 | J8: 1756 | M8: Montfort
A9: P90 | B9: 283.8 | C9: 86.9 | D9: 198.4 | E9: 231.4 | F9: 391.2 | G9: 425.9 | H9: 43.8 | I9: 1661 | J9: 1816
A10: P75 | B10: 307.1 | C10: 95.2 | D10: 214.2 | E10: 258.4 | F10: 431.6 | G10: 478.3 | H10: 52.9 | I10: 1838 | J10: 1917
A11: P50 | B11: 333 | C11: 104.5 | D11: 231.8 | E11: 288.5 | F11: 476.5 | G11: 536.6 | H11: 57.6 | I11: 2029 | J11: 2029
A12: Variation (%)
A13: P95/P50 | B13: 81 | C13: 78 | D13: 82 | E13: 75 | F13: 77 | G13: 74 | H13: 56
A14: P90/P50 | B14: 85 | C14: 83 | D14: 86 | E14: 80 | F14: 82 | G14: 79 | H14: 76
A15: P75/P50 | B15: 92 | C15: 91 | D15: 92 | E15: 90 | F15: 91 | G15: 89 | H15: 92
A16: 10-Year Average
A17: P95 | B17: 300.3 | C17: 93.6 | D17: 208.8 | E17: 238.4 | F17: 402.8 | G17: 428.8 | H17: 41.5 | I17: 1714 | J17: 1828
A18: P90 | B18: 307.5 | C18: 96 | D18: 213.9 | E18: 249.5 | F18: 419.1 | G18: 452.6 | H18: 48.9 | I18: 1787 | J18: 1872
A19: P75 | B19: 319.6 | C19: 100 | D19: 222.3 | E19: 268 | F19: 446.3 | G19: 492.4 | H19: 54.6 | I19: 1903 | J19: 1946
A20: P50 | B20: 333 | C20: 104.5 | D20: 231.8 | E20: 288.5 | F20: 476.5 | G20: 536.6 | H20: 57.6 | I20: 2029 | J20: 2029
A21: Ratio of 1-year to 10-year (%)
A22: P95 | B22: 90 | C22: 88 | D22: 91 | E22: 90 | F22: 91 | G22: 92 | H22: 78
A23: P90 | B23: 92 | C23: 91 | D23: 93 | E23: 93 | F23: 93 | G23: 94 | H23: 90
A24: P75 | B24: 96 | C24: 95 | D24: 96 | E24: 96 | F24: 97 | G24: 97 | H24: 97
A25: P50 | B25: 100 | C25: 100 | D25: 100 | E25: 100 | F25: 100 | G25: 100 | H25: 100
A27: Standard Deviation - 10yr | B27: =1-B18/B20 -> 0.07657657658 | C27: =1-C18/C20 -> 0.08133971292 | D27: 0.07722174288 | E27: 0.1351819757 | F27: 0.1204616999 | G27: 0.1565411852 | H27: 0.1510416667
A28: P95 | B28: 19.8801884 | C28: 6.626729468 | D28: 13.98300713 | E28: 30.45863728 | F28: 44.80641851 | G28: 65.53774648 | H28: 9.788104994
A29: P90 | B29: 19.89775572 | C29: 6.632585242 | D29: 13.96744421 | E29: 30.4318617 | F29: 44.78945798 | G29: 65.54554827 | H29: 6.788646071
A30: P75 | B30: 19.86686973 | C30: 6.671709983 | D30: 14.08472108 | E30: 30.39334548 | F30: 44.774587 | G30: 65.53101806 | H30: 4.447806656
A31: P50 | B31: 10 | C31: 10 | D31: 10 | E31: 10 | F31: 10 | G31: 10 | H31: 10
A33: Goal Seek
A34: 0.05 | B34: =_xlfn.NORM.INV($A34,B$20,B28)-B17 -> 0 | C34: 0 | D34: 0 | E34: 0 | F34: 0 | G34: 0 | H34: 0
A35: 0.1 | B35: 0 | C35: 0 | D35: 0 | E35: 0 | F35: 0 | G35: 0 | H35: 0
A36: 0.25 | B36: 0 | C36: 0 | D36: 0 | E36: 0 | F36: 0 | G36: 0 | H36: 0
A37: 0.5 | B37: 0 | C37: 0 | D37: 0 | E37: 0 | F37: 0 | G37: 0 | H37: 0
A40: Permanent Deviation/Mean | B40: =B28/B20 -> 0.05970026548 | C40: =C28/C20 -> 0.06341367912 | D40: 0.06032358557 | E40: 0.1055758658 | F40: 0.09403235784 | G40: 0.1221351966 | H40: 0.1699323784
A41: Capacity Factor | B41: =B5/100 -> 0.367 | C41: 0.289 | D41: 0.353 | E41: 0.337 | F41: 0.373 | G41: 0.3 | H41: 0.219
A44: Standard Deviation - 1 Year
A45: P95 | B45: 38.36207609 | C45: 13.7398244 | D45: 26.02055241 | E45: 44.56323578 | F45: 66.51047741 | G45: 86.32987013 | H45: 15.38130785
A46: P90 | B46: 38.39096399 | C46: 13.73335297 | D46: 26.06215848 | E46: 44.55536674 | F46: 66.55994366 | G46: 86.37966897 | H46: 10.76819722
A47: P75 | B47: 38.39939746 | C47: 13.78820063 | D47: 26.09379905 | E47: 44.62632678 | F47: 66.56883961 | G47: 86.43570934 | H47: 6.968230427
A48: P50 | B48: 20 | C48: 20 | D48: 20 | E48: 20 | F48: 20 | G48: 20 | H48: 20
A50: Goal Seek
A51: 0.05 | B51: =NORMINV($A51,B$20,B45)-B8 -> 0 | C51: 0 | D51: 0 | E51: 0 | F51: 0 | G51: 0 | H51: 0
A52: 0.1 | B52: 0 | C52: 0 | D52: 0 | E52: 0 | F52: 0 | G52: 0 | H52: 0
A53: 0.25 | B53: 0 | C53: 0 | D53: 0 | E53: 0 | F53: 0 | G53: 0 | H53: 0
A54: 0.5 | B54: 0 | C54: 0 | D54: 0 | E54: 0 | F54: 0 | G54: 0 | H54: 0
A56: Total Deviation/Mean | B56: =B45/B20 -> 0.1152014297 | C56: =C45/C20 -> 0.1314815732 | D56: 0.1122543244 | E56: 0.1544652887 | F56: 0.1395812747 | G56: 0.1608830975 | H56: 0.2670365946
A57: Capacity Factor | B57: =B41 -> 0.367 | C57: =C41 -> 0.289 | D57: 0.353 | E57: 0.337 | F57: 0.373 | G57: 0.3 | H57: 0.219
A59: Std Deviation - Wind Effect
A60: P95 | B60: =(B45^2-B28^2)^0.5 -> 32.80894682 | C60: =(C45^2-C28^2)^0.5 -> 12.03616347 | D60: 21.94412584 | E60: 32.52926987 | F60: 49.15311247 | G60: 56.19297343 | H60: 11.864975
A61: P90 | B61: =(B46^2-B29^2)^0.5 -> 32.83207933 | C61: 12.02554767 | D61: 22.00333172 | E61: 32.54354773 | F61: 49.23546033 | G61: 56.26036183 | H61: 8.358729318
A62: P75 | B62: 32.86063317 | C62: 12.06659698 | D62: 21.96604154 | E62: 32.67649908 | F62: 49.26100655 | G62: 56.36326393 | H62: 5.364070398
A64: Wind Deviation/Mean | B64: =B60/B20 -> 0.09852536582 | C64: =C60/C20 -> 0.1151785978 | D64: 0.09466835998 | E64: 0.1127531018 | F64: 0.1031544858 | G64: 0.1047204127 | H64: 0.2059891493
A65: Capacity Factor | B65: =B57 -> 0.367 | C65: =C57 -> 0.289 | D65: 0.353 | E65: 0.337 | F65: 0.373 | G65: 0.3 | H65: 0.219
B67: =B45 -> 38.36207609 | C67: =B67^2 -> 1471.648882
B68: =B28 -> 19.8801884 | C68: =B68^2 -> 395.221891
B69: =C69^0.5 -> 32.80894682 | C69: =C67-C68 -> 1076.426991
